fUST/lending_fUST_20240226
["ID","MTS","AMOUNT","RATE_DAILY","PERIOD"]
[315160623,1708896642100,-500.0,0.00019178,2]
[315160624,1708896642109,-2305.61,0.00019178,2]
[315160625,1708896642118,-500.0,0.00019178,2]
[315160626,1708896642127,-500.0,0.00019178,2]
[315160627,1708896642137,-500.0,0.00019178,2]
[315160628,1708896642145,-500.0,0.00019178,2]
[315160629,1708896642155,-500.0,0.00019178,2]
[315160630,1708896642164,-500.0,0.00019178,2]
[315160631,1708896642173,-500.0,0.00019178,2]
[315160632,1708896642184,-500.0,0.00019178,2]
[315160633,1708896642193,-500.0,0.00019178,2]
[315160634,1708896642203,-500.0,0.00019178,2]
[315160635,1708896642212,-500.0,0.00019178,2]
[315160636,1708896642220,-587.13,0.00019178,2]
[315160637,1708896642229,-587.13,0.00019178,2]
[315160638,1708896642239,-587.13,0.00019178,2]
[315160639,1708896642250,-587.13,0.00019178,2]
[315160640,1708896642260,-587.13,0.00019178,2]
[315160641,1708896642269,-500.0,0.00019178,2]
[315160642,1708896642278,-500.0,0.00019178,2]
[315160643,1708896642289,-500.0,0.00019178,2]
[315160644,1708896642299,-920.57,0.00019178,2]
[315160645,1708896642309,-500.0,0.00019178,2]
[315160646,1708896642318,-500.0,0.00019178,2]
[315160647,1708896642327,-500.0,0.00019178,2]
[315160648,1708896642337,-500.0,0.00019178,2]
[315160649,1708896642346,-500.0,0.00019178,2]
[315160650,1708896642355,-2384.22,0.00019178,2]
[315160651,1708896642364,-500.0,0.00019178,2]
[315160652,1708896642375,-500.0,0.00019178,2]
[315160653,1708896642385,-500.0,0.00019178,2]
[315160654,1708896642394,-562.5,0.00019178,2]
[315160655,1708896642404,-500.0,0.00019178,2]
[315160656,1708896642413,-500.0,0.00019178,2]
[315160657,1708896642422,-16373.08,0.00019178,2]
[315160658,1708896642432,-500.0,0.00019178,2]
[315160659,1708896642442,-451.64073041,0.00019178,2]
[315160660,1708896642452,-3589.87,0.00019178,2]
[315160661,1708896642461,-500.0,0.00019178,2]
[315160662,1708896642471,-500.0,0.00019178,2]
[315160663,1708896642480,-500.0,0.00019178,2]
[315160664,1708896642490,-500.0,0.00019178,2]
[315160665,1708896642499,-500.0,0.00019178,2]
[315160666,1708896642509,-500.0,0.00019178,2]
[315160667,1708896642519,-500.0,0.00019178,2]
[315160668,1708896642528,-500.0,0.00019178,2]
[315160669,1708896642538,-500.0,0.00019178,2]
[315160670,1708896642547,-400.0,0.00019178,2]
[315160671,1708896642556,-164.352299,0.00019178,2]
[315160672,1708896642566,-161.736935,0.00019178,2]
[315160673,1708896642575,-166.666666,0.00019178,2]
[315160674,1708896642585,-290.57857252,0.00019215,2]
[315160675,1708896642594,-290.57857252,0.00019284,2]
[315160676,1708896642603,-290.57857252,0.00019352,2]
[315160677,1708896642612,-174.0,0.000194,2]
[315160678,1708896642622,-500.0,0.00019451,2]
[315160679,1708896642631,-500.0,0.00019451,2]
[315160680,1708896642641,-500.0,0.00019451,2]
[315160681,1708896642650,-500.0,0.00019451,2]
[315160682,1708896642659,-587.13,0.00019451,2]
[315160683,1708896642669,-587.13,0.00019451,2]
[315160684,1708896642678,-587.13,0.00019451,2]
[315160685,1708896642688,-587.13,0.00019451,2]
[315160687,1708896642697,-500.0,0.00019452,2]
[315160688,1708896642707,-500.0,0.00019452,2]
[315160689,1708896642716,-500.0,0.00019452,2]
[315160690,1708896642725,-500.0,0.00019452,2]
[315160691,1708896642735,-500.0,0.00019452,2]
[315160692,1708896642744,-183.66690756,0.00019452,2]
[315160693,1708896642754,-500.0,0.00019452,2]
[315160694,1708896642763,-500.0,0.00019452,2]
[315160695,1708896642772,-500.0,0.00019452,2]
[315160696,1708896642782,-1602.66,0.00019452,2]
[315160697,1708896642791,-412.07836257,0.00019452,2]
[315160699,1708896642800,-500.0,0.00019452,2]
[315160700,1708896642809,-500.0,0.00019452,2]
[315160701,1708896642819,-200.0,0.00019452,2]
[315160702,1708896642828,-500.0,0.00019452,2]
[315160703,1708896642837,-500.0,0.00019452,2]
[315160704,1708896642846,-461.91857178,0.00019452,2]
[315160705,1708896642855,-500.0,0.00019452,2]
[315160706,1708896642864,-500.0,0.00019452,2]
[315160707,1708896642873,-500.0,0.00019452,2]
[315160708,1708896642882,-500.0,0.00019452,2]
[315160709,1708896642891,-500.0,0.00019452,2]
[315160710,1708896642900,-218.11779643,0.00019452,2]
[315160711,1708896642909,-500.0,0.00019452,2]
[315160712,1708896642918,-515.7261257,0.00019452,2]
[315160713,1708896642928,-500.0,0.00019452,2]
[315160714,1708896642938,-500.0,0.00019452,2]
[315160715,1708896642948,-541.89,0.00019452,2]
[315160716,1708896642957,-500.0,0.00019452,2]
[315160717,1708896642966,-500.0,0.00019452,2]
[315160718,1708896642976,-443.11011788,0.00019452,2]
[315160719,1708896642985,-500.0,0.00019452,2]
[315160721,1708896642994,-500.0,0.00019452,2]
[315160723,1708896643003,-500.0,0.00019452,2]
[315160725,1708896643013,-500.0,0.00019452,2]
[315160727,1708896643022,-500.0,0.00019452,2]
[315160729,1708896643031,-500.0,0.00019452,2]
[315160731,1708896643040,-500.0,0.00019452,2]
[315160733,1708896643050,-500.0,0.00019452,2]
[315160735,1708896643059,-502.05058495,0.00019452,2]
[315160737,1708896643069,-500.0,0.00019452,2]
[315160738,1708896643078,-500.0,0.00019452,2]
[315160740,1708896643087,-500.0,0.00019452,2]
[315160742,1708896643097,-500.0,0.00019452,2]
[315160744,1708896643106,-500.0,0.00019452,2]
[315160746,1708896643115,-500.0,0.00019452,2]
[315160748,1708896643124,-500.0,0.00019452,2]
[315160750,1708896643133,-500.0,0.00019452,2]
[315160752,1708896643142,-500.0,0.00019452,2]
[315160754,1708896643152,-500.0,0.00019452,2]
[315160756,1708896643161,-500.0,0.00019452,2]
[315160758,1708896643170,-500.0,0.00019452,2]
[315160760,1708896643181,-2476.65,0.00019452,2]
[315160762,1708896643190,-500.0,0.00019452,2]
[315160764,1708896643199,-151.0,0.00019452,2]
[315160766,1708896643208,-1114.48,0.00019452,2]
[315160768,1708896643218,-500.0,0.00019452,2]
[315160770,1708896643227,-500.0,0.00019452,2]
[315160772,1708896643236,-266.57275156,0.00019452,2]
[315160774,1708896643250,-500.0,0.00019452,2]
[315160776,1708896643259,-500.0,0.00019452,2]
[315160778,1708896643268,-719.92,0.00019452,2]
[315160780,1708896643278,-500.0,0.00019452,2]
[315160782,1708896643287,-501.34536257,0.00019452,2]
[315160784,1708896643298,-500.0,0.00019452,2]
[315160786,1708896643307,-602.69,0.00019452,2]
[315160788,1708896643317,-500.0,0.00019452,2]
[315160790,1708896643326,-1144.16,0.00019452,2]
[315160792,1708896643336,-500.0,0.00019452,2]
[315160794,1708896643346,-520.36,0.00019452,2]
[315160796,1708896643355,-500.0,0.00019452,2]
[315160798,1708896643364,-502.09679312,0.00019452,2]
[315160800,1708896643374,-417.12961598,0.00019452,2]
[315160802,1708896643386,-500.0,0.00019452,2]
[315160804,1708896643396,-521.32310126,0.00019452,2]
[315160806,1708896643405,-500.0,0.00019452,2]
[315160808,1708896643414,-500.0,0.00019452,2]
[315160810,1708896643423,-527.48064303,0.00019452,2]
[315160811,1708896643433,-502.54439093,0.00019452,2]
[315160813,1708896643442,-501.1824687,0.00019452,2]
[315160815,1708896643452,-500.0,0.00019452,2]
[315160817,1708896643462,-500.0,0.00019452,2]
[315160819,1708896643471,-500.0,0.00019452,2]
[315160822,1708896643480,-281.21571745,0.00019452,2]
[315160824,1708896643489,-614.33144161,0.00019452,2]
[315160826,1708896643499,-500.0,0.00019452,2]
[315160828,1708896643508,-500.0,0.00019452,2]
[315160829,1708896643517,-500.0,0.00019452,2]
[315160831,1708896643526,-500.0,0.00019452,2]
[315160833,1708896643535,-500.0,0.00019452,2]
[315160835,1708896643544,-500.4285355,0.00019452,2]
[315160837,1708896643554,-500.0,0.00019452,2]
[315160839,1708896643564,-1000.0,0.00019452,2]
[315160841,1708896643573,-500.0,0.00019452,2]
[315160843,1708896643584,-500.0,0.00019452,2]
[315160845,1708896643593,-500.0,0.00019452,2]
[315160847,1708896643602,-502.61238656,0.00019452,2]
[315160849,1708896643611,-500.0,0.00019452,2]
[315160851,1708896643621,-500.0,0.00019452,2]
[315160853,1708896643631,-579.29146287,0.00019452,2]
[315160855,1708896643640,-500.0,0.00019452,2]
[315160857,1708896643649,-500.0,0.00019452,2]
[315160859,1708896643659,-1692.88,0.00019452,2]
[315160861,1708896643668,-414.64097226,0.00019452,2]
[315160863,1708896643677,-500.0,0.00019452,2]
[315160865,1708896643688,-500.0,0.00019452,2]
[315160867,1708896643699,-500.0,0.00019452,2]
[315160869,1708896643708,-500.0,0.00019452,2]
[315160871,1708896643718,-500.50799428,0.00019452,2]
[315160873,1708896643727,-500.0,0.00019452,2]
[315160875,1708896643735,-500.0,0.00019452,2]
[315160877,1708896643745,-500.0,0.00019452,2]
[315160879,1708896643755,-500.0,0.00019452,2]
[315160881,1708896643764,-631.02090704,0.00019452,2]
[315160882,1708896643772,-500.0,0.00019452,2]
[315160884,1708896643782,-500.0,0.00019452,2]
[315160886,1708896643791,-500.0,0.00019452,2]
[315160888,1708896643800,-500.0,0.00019452,2]
[315160890,1708896643810,-500.44554136,0.00019452,2]
[315160892,1708896643819,-500.0,0.00019452,2]
[315160894,1708896643828,-500.0,0.00019452,2]
[315160896,1708896643838,-1403.83,0.00019452,2]
[315160898,1708896643847,-500.0,0.00019452,2]
[315160900,1708896643856,-500.0,0.00019452,2]
[315160902,1708896643866,-500.0,0.00019452,2]
[315160904,1708896643875,-500.0,0.00019452,2]
[315160906,1708896643885,-604.0350439,0.00019452,2]
[315160908,1708896643894,-230.13455929,0.00019452,2]
[315160910,1708896643903,-500.0,0.00019452,2]
[315160912,1708896643913,-500.0,0.00019452,2]
[315160914,1708896643922,-500.0,0.00019452,2]
[315160916,1708896643932,-500.0,0.00019452,2]
[315160918,1708896643942,-500.0,0.00019452,2]
[315160920,1708896643951,-500.0,0.00019452,2]
[315160922,1708896643959,-500.0,0.00019452,2]
[315160924,1708896643968,-500.0,0.00019452,2]
[315160925,1708896643978,-417.98180468,0.00019452,2]
[315160927,1708896643987,-500.0,0.00019452,2]
[315160929,1708896643997,-500.0,0.00019452,2]
[315160941,1708896644087,-500.0,0.00019452,2]
[315160943,1708896644110,-500.0,0.00019452,2]
[315160945,1708896644120,-633.36,0.00019452,2]
[315160947,1708896644129,-501.58719157,0.00019452,2]
[315160949,1708896644138,-500.0,0.00019452,2]
[315160951,1708896644147,-500.0,0.00019452,2]
[315160953,1708896644156,-500.0,0.00019452,2]
[315160955,1708896644166,-500.0,0.00019452,2]
[315160957,1708896644175,-312.19112471,0.00019452,2]
[315160959,1708896644186,-685.75,0.00019452,2]
[315160961,1708896644195,-500.0,0.00019452,2]
[315160963,1708896644205,-500.0,0.00019452,2]
[315160965,1708896644214,-500.0,0.00019452,2]
[315160967,1708896644223,-500.0,0.00019452,2]
[315160969,1708896644232,-500.0,0.00019452,2]
[315160971,1708896644242,-500.0,0.00019452,2]
[315160973,1708896644255,-500.0,0.00019452,2]
[315160975,1708896644264,-500.0,0.00019452,2]
[315160977,1708896644273,-544.51786006,0.00019452,2]
[315160979,1708896644283,-500.0,0.00019452,2]
[315160981,1708896644295,-500.0,0.00019452,2]
[315160983,1708896644304,-500.39052972,0.00019452,2]
[315160985,1708896644314,-500.88715214,0.00019452,2]
[315160987,1708896644323,-500.0,0.00019452,2]
[315160989,1708896644333,-301.65407508,0.00019452,2]
[315160991,1708896644342,-500.0,0.00019452,2]
[315160993,1708896644352,-500.0,0.00019452,2]
[315160995,1708896644361,-1232.06,0.00019452,2]
[315160997,1708896644370,-640.14797302,0.00019452,2]
[315160999,1708896644380,-501.45,0.00019452,2]
[315161001,1708896644391,-500.0,0.00019452,2]
[315161003,1708896644401,-500.0,0.00019452,2]
[315161005,1708896644410,-500.0,0.00019452,2]
[315161007,1708896644420,-500.0,0.00019452,2]
[315161009,1708896644429,-500.0,0.00019452,2]
[315161011,1708896644440,-618.91,0.00019452,2]
[315161013,1708896644449,-500.0,0.00019452,2]
[315161015,1708896644458,-500.0,0.00019452,2]
[315161017,1708896644467,-500.0,0.00019452,2]
[315161019,1708896644477,-1445.09,0.00019452,2]
[315161021,1708896644485,-500.0,0.00019452,2]
[315161023,1708896644495,-500.0,0.00019452,2]
[315161025,1708896644504,-500.0,0.00019452,2]
[315161027,1708896644513,-500.0,0.00019452,2]
[315161029,1708896644523,-500.0,0.00019452,2]
[315161031,1708896644532,-500.0,0.00019452,2]
[315161033,1708896644541,-500.0,0.00019452,2]
[315161035,1708896644551,-500.0,0.00019452,2]
[315161037,1708896644561,-500.0,0.00019452,2]
[315161039,1708896644570,-1995.77,0.00019452,2]
[315161041,1708896644579,-500.50541851,0.00019452,2]
[315161043,1708896644589,-500.0,0.00019452,2]
[315161045,1708896644599,-500.0,0.00019452,2]
[315161047,1708896644608,-2193.07,0.00019452,2]
[315161049,1708896644617,-500.0,0.00019452,2]
[315161051,1708896644626,-501.21839643,0.00019452,2]
[315161053,1708896644635,-2102.65,0.00019452,2]
[315161055,1708896644644,-500.0,0.00019452,2]
[315161057,1708896644653,-500.0,0.00019452,2]
[315161059,1708896644662,-500.0,0.00019452,2]
[315161061,1708896644671,-500.0,0.00019452,2]
[315161063,1708896644682,-1572.91,0.00019452,2]
[315161065,1708896644691,-500.0,0.00019452,2]
[315161066,1708896644700,-500.0,0.00019452,2]
[315161068,1708896644709,-500.51240709,0.00019452,2]
[315161071,1708896644720,-500.0,0.00019452,2]
[315161072,1708896644729,-500.0,0.00019452,2]
[315161074,1708896644738,-500.0,0.00019452,2]
[315161076,1708896644747,-500.0,0.00019452,2]
[315161078,1708896644756,-1000.0,0.00019452,2]
[315161080,1708896644765,-500.0,0.00019452,2]
[315161082,1708896644774,-500.0,0.00019452,2]
[315161084,1708896644783,-8871.94,0.00019452,2]
[315161086,1708896644793,-500.0,0.00019452,2]
[315161088,1708896644802,-500.0,0.00019452,2]
[315161090,1708896644811,-500.0,0.00019452,2]
[315161092,1708896644820,-500.0,0.00019452,2]
[315161094,1708896644830,-500.0,0.00019452,2]
[315161096,1708896644840,-500.0,0.00019452,2]
[315161098,1708896644849,-3183.04,0.00019452,2]
[315161100,1708896644858,-500.0,0.00019452,2]
[315161102,1708896644868,-265.9437371,0.00019452,2]
[315161104,1708896644877,-500.0,0.00019452,2]
[315161106,1708896644886,-500.0,0.00019452,2]
[315161108,1708896644895,-500.0,0.00019452,2]
[315161109,1708896644904,-500.0,0.00019452,2]
[315161111,1708896644913,-500.0,0.00019452,2]
[315161113,1708896644922,-485.95883318,0.00019452,2]
[315161115,1708896644932,-17277.7,0.00019452,2]
[315161117,1708896644942,-500.42437072,0.00019452,2]
[315161119,1708896644951,-500.0,0.00019452,2]
[315161121,1708896644960,-500.0,0.00019452,2]
[315161123,1708896644969,-500.0,0.00019452,2]
[315161125,1708896644978,-1668.96,0.00019452,2]
[315161127,1708896644987,-482.96851465,0.00019452,2]
[315161129,1708896644996,-500.0,0.00019452,2]
[315161130,1708896645005,-1084.32,0.00019452,2]
[315161132,1708896645014,-630.4741948,0.00019452,2]
[315161134,1708896645023,-500.0,0.00019452,2]
[315161136,1708896645032,-500.0,0.00019452,2]
[315161139,1708896645041,-1346.89,0.00019452,2]
[315161140,1708896645050,-500.0,0.00019452,2]
[315161142,1708896645059,-1658.31,0.00019452,2]
[315161144,1708896645068,-500.0,0.00019452,2]
[315161146,1708896645077,-500.0,0.00019452,2]
[315161148,1708896645086,-500.0,0.00019452,2]
[315161150,1708896645095,-500.0,0.00019452,2]
[315161152,1708896645104,-6424.74,0.00019452,2]
[315161154,1708896645113,-500.0,0.00019452,2]
[315161156,1708896645123,-500.0,0.00019452,2]
[315161158,1708896645132,-541.66,0.00019452,2]
[315161160,1708896645140,-500.0,0.00019452,2]
[315161162,1708896645149,-500.0,0.00019452,2]
[315161164,1708896645158,-500.0,0.00019452,2]
[315161166,1708896645167,-9311.57,0.00019452,2]
[315161168,1708896645176,-500.0,0.00019452,2]
[315161170,1708896645187,-500.0,0.00019452,2]
[315161172,1708896645196,-500.0,0.00019452,2]
[315161174,1708896645206,-1845.4,0.00019452,2]
[315161176,1708896645215,-500.0,0.00019452,2]
[315161178,1708896645224,-500.0,0.00019452,2]
[315161180,1708896645233,-500.0,0.00019452,2]
[315161182,1708896645247,-504.30900144,0.00019452,2]
[315161184,1708896645257,-500.0,0.00019452,2]
[315161186,1708896645266,-2305.61,0.00019452,2]
[315161188,1708896645275,-500.0,0.00019452,2]
[315161190,1708896645284,-500.0,0.00019452,2]
[315161192,1708896645295,-500.0,0.00019452,2]
[315161194,1708896645305,-500.0,0.00019452,2]
[315161196,1708896645314,-500.0,0.00019452,2]
[315161198,1708896645324,-500.0,0.00019452,2]
[315161200,1708896645334,-500.0,0.00019452,2]
[315161202,1708896645343,-500.0,0.00019452,2]
[315161204,1708896645352,-500.0,0.00019452,2]
[315161206,1708896645361,-500.52544546,0.00019452,2]
[315161208,1708896645371,-500.0,0.00019452,2]
[315161210,1708896645380,-589.92596995,0.00019452,2]
[315161212,1708896645390,-920.57,0.00019452,2]
[315161214,1708896645399,-500.0,0.00019452,2]
[315161216,1708896645409,-483.33143822,0.00019452,2]
[315161218,1708896645418,-500.0,0.00019452,2]
[315161220,1708896645427,-500.6752788,0.00019452,2]
[315161222,1708896645437,-500.0,0.00019452,2]
[315161224,1708896645446,-2384.22,0.00019452,2]
[315161226,1708896645456,-500.0,0.00019452,2]
[315161228,1708896645467,-500.0,0.00019452,2]
[315161230,1708896645476,-562.5,0.00019452,2]
[315161232,1708896645485,-500.0,0.00019452,2]
[315161234,1708896645494,-500.0,0.00019452,2]
[315161236,1708896645504,-16373.08,0.00019452,2]
[315161238,1708896645513,-500.0,0.00019452,2]
[315161240,1708896645523,-3589.87,0.00019452,2]
[315161242,1708896645532,-500.0,0.00019452,2]
[315161244,1708896645541,-500.0,0.00019452,2]
[315161246,1708896645550,-500.0,0.00019452,2]
[315161248,1708896645559,-631.88316955,0.00019452,2]
[315161250,1708896645568,-500.0,0.00019452,2]
[315161252,1708896645577,-500.0,0.00019452,2]
[315161254,1708896645586,-500.0,0.00019452,2]
[315161256,1708896645595,-7321.61669943,0.00019469,2]
[315161258,1708896645604,-182.51135653,0.00019477,2]
[315161260,1708896645613,-182.51135653,0.00019483,2]
[315161262,1708896645623,-7321.61669943,0.00019489,2]
[315161264,1708896645632,-182.51135653,0.0001949,2]
[315161265,1708896645641,-7321.61669943,0.00019491,2]
[315161267,1708896645651,-2692.82504015,0.00019626,2]
[315161269,1708896645660,-166.666666,0.00019627,2]
[315161271,1708896645669,-2692.82504007,0.00019656,2]
[315161273,1708896645678,-2692.82504007,0.00019687,2]
[315161275,1708896645688,-5523.32487849,0.000197,2]
[315161277,1708896645698,-5523.32487849,0.000197,2]
[315161279,1708896645709,-5523.32487849,0.000197,2]
[315161282,1708896645719,-306.0,0.000197,2]
[315161283,1708896645729,-379.9535109,0.000197,2]
[315161285,1708896645738,-301.9614026,0.000197,2]
[315161288,1708896645747,-153.0,0.000197,2]
[315161290,1708896645757,-200.5569553,0.000197,2]
[315161291,1708896645766,-232.7549351,0.000197,2]
[315161293,1708896645775,-153.0,0.000197,2]
[315161295,1708896645784,-153.0,0.000197,2]
[315161297,1708896645793,-200.5569553,0.000197,2]
[315161299,1708896645802,-153.0,0.000197,2]
[315161301,1708896645811,-431.2948905,0.000197,2]
[315161303,1708896645820,-306.0,0.000197,2]
[315161305,1708896645830,-153.0,0.000197,2]
[315161307,1708896645839,-153.0,0.000197,2]
[315161309,1708896645848,-153.0,0.000197,2]
[315161311,1708896645857,-153.0,0.000197,2]
[315161313,1708896645866,-153.0,0.000197,2]
[315161315,1708896645875,-153.0,0.000197,2]
[315161317,1708896645884,-200.5569553,0.000197,2]
[315161319,1708896645893,-153.0,0.000197,2]
[315161320,1708896645902,-153.0,0.000197,2]
[315161321,1708896645912,-153.0,0.000197,2]
[315161322,1708896645921,-200.5569553,0.000197,2]
[315161323,1708896645930,-153.0,0.000197,2]
[315161324,1708896645939,-153.0,0.000197,2]
[315161325,1708896645948,-2692.82504007,0.00019717,2]
[315161326,1708896645958,-500.0,0.00019725,2]
[315161327,1708896645966,-500.0,0.00019725,2]
[315161328,1708896645975,-500.0,0.00019725,2]
[315161329,1708896645984,-500.0,0.00019725,2]
[315161330,1708896645993,-587.13,0.00019725,2]
[315161331,1708896646002,-587.13,0.00019725,2]
[315161332,1708896646011,-587.13,0.00019725,2]
[315161333,1708896646020,-500.0,0.00019726,2]
[315161334,1708896646029,-549.86995399,0.00019726,2]
[315161335,1708896646038,-541.94821274,0.00019726,2]
[315161336,1708896646047,-500.0,0.00019726,2]
[315161337,1708896646056,-1602.66,0.00019726,2]
[315161338,1708896646066,-500.0,0.00019726,2]
[315161339,1708896646075,-501.22711499,0.00019726,2]
[315161340,1708896646084,-500.0,0.00019726,2]
[315161341,1708896646094,-389.05948452,0.00019726,2]
[315161342,1708896646102,-500.0,0.00019726,2]
[315161343,1708896646111,-500.0,0.00019726,2]
[315161344,1708896646121,-622.45384115,0.00019726,2]
[315161345,1708896646130,-501.38504518,0.00019726,2]
[315161346,1708896646138,-500.0,0.00019726,2]
[315161347,1708896646147,-500.0,0.00019726,2]
[315161348,1708896646157,-541.89,0.00019726,2]
[315161349,1708896646166,-500.0,0.00019726,2]
[315161350,1708896646175,-500.0,0.00019726,2]
[315161351,1708896646185,-500.0,0.00019726,2]
[315161352,1708896646194,-500.0,0.00019726,2]
[315161353,1708896646203,-500.92354226,0.00019726,2]
[315161354,1708896646212,-500.0,0.00019726,2]
[315161355,1708896646221,-500.0,0.00019726,2]
[315161356,1708896646232,-500.0,0.00019726,2]
[315161357,1708896646242,-500.0,0.00019726,2]
[315161358,1708896646253,-500.0,0.00019726,2]
[315161360,1708896646262,-500.0,0.00019726,2]
[315161361,1708896646272,-500.0,0.00019726,2]
[315161362,1708896646282,-500.0,0.00019726,2]
[315161364,1708896646296,-500.0,0.00019726,2]
[315161366,1708896646306,-500.0,0.00019726,2]
[315161367,1708896646316,-500.0,0.00019726,2]
[315161368,1708896646324,-500.0,0.00019726,2]
[315161369,1708896646334,-324.00031665,0.00019726,2]
[315161370,1708896646429,-2476.65,0.00019726,2]
[315161371,1708896646439,-582.12796174,0.00019726,2]
[315161372,1708896646449,-151.0,0.00019726,2]
[315161373,1708896646458,-1114.48,0.00019726,2]
[315161374,1708896646468,-500.0,0.00019726,2]
[315161375,1708896646477,-500.0,0.00019726,2]
[315161376,1708896646487,-500.0,0.00019726,2]
[315161377,1708896646496,-345.59939046,0.00019726,2]
[315161378,1708896646506,-719.92,0.00019726,2]
[315161379,1708896646516,-500.0,0.00019726,2]
[315161380,1708896646525,-500.0,0.00019726,2]
[315161381,1708896646534,-602.69,0.00019726,2]
[315161382,1708896646543,-500.0,0.00019726,2]
[315161383,1708896646552,-1144.16,0.00019726,2]
[315161384,1708896646561,-500.0,0.00019726,2]
[315161385,1708896646570,-520.36,0.00019726,2]
[315161386,1708896646580,-500.0,0.00019726,2]
[315161387,1708896646589,-500.0,0.00019726,2]
[315161388,1708896646598,-500.0,0.00019726,2]
[315161389,1708896646607,-500.0,0.00019726,2]
[315161390,1708896646616,-500.0,0.00019726,2]
[315161391,1708896646626,-500.0,0.00019726,2]
[315161392,1708896646635,-500.0,0.00019726,2]
[315161393,1708896646645,-500.0,0.00019726,2]
[315161394,1708896646654,-500.0,0.00019726,2]
[315161395,1708896646663,-500.0,0.00019726,2]
[315161396,1708896646673,-634.56249942,0.00019726,2]
[315161397,1708896646684,-500.0,0.00019726,2]
[315161398,1708896646694,-500.0,0.00019726,2]
[315161399,1708896646703,-1004.11866743,0.00019726,2]
[315161400,1708896646712,-500.0,0.00019726,2]
[315161401,1708896646721,-500.0,0.00019726,2]
[315161402,1708896646731,-500.0,0.00019726,2]
[315161403,1708896646740,-521.6383826,0.00019726,2]
[315161404,1708896646749,-500.0,0.00019726,2]
[315161405,1708896646758,-500.0,0.00019726,2]
[315161406,1708896646767,-1692.88,0.00019726,2]
[315161407,1708896646776,-500.0,0.00019726,2]
[315161408,1708896646785,-614.95785219,0.00019726,2]
[315161409,1708896646794,-500.0,0.00019726,2]
[315161410,1708896646803,-500.0,0.00019726,2]
[315161411,1708896646813,-500.0,0.00019726,2]
[315161412,1708896646822,-500.0,0.00019726,2]
[315161413,1708896646831,-500.0,0.00019726,2]
[315161414,1708896646840,-500.0,0.00019726,2]
[315161415,1708896646850,-510.22306871,0.00019726,2]
[315161416,1708896646859,-500.0,0.00019726,2]
[315161417,1708896646868,-592.55105003,0.00019726,2]
[315161418,1708896646877,-500.0,0.00019726,2]
[315161419,1708896646887,-1403.83,0.00019726,2]
[315161420,1708896646896,-501.27644702,0.00019726,2]
[315161421,1708896646905,-500.0,0.00019726,2]
[315161422,1708896646914,-500.0,0.00019726,2]
[315161423,1708896646923,-500.0,0.00019726,2]
[315161424,1708896646932,-500.0,0.00019726,2]
[315161425,1708896646941,-500.0,0.00019726,2]
[315161426,1708896646950,-500.0,0.00019726,2]
[315161427,1708896646960,-500.0,0.00019726,2]
[315161428,1708896646969,-500.0,0.00019726,2]